bitfinex-derivatives/quotes_BTCF0:USTF0_20260207
["timestamp","ask_amount","ask_price","bid_price","bid_amount"]
[1770438970902,0.53696666,71155.0,71132.0,0.014067]
[1770438971307,0.014062,71162.0,71138.0,0.014066]
[1770438971508,0.53696666,71162.0,71138.0,0.014066]
[1770438972010,0.53696666,71158.0,71134.0,0.014067]
[1770438972314,0.53696666,71156.0,71127.0,0.53438451]
[1770438972616,0.01406,71169.0,71128.0,0.014068]
[1770438972617,0.53696666,71152.0,71128.0,0.014068]
[1770438973315,0.53696666,71150.0,71124.0,0.014069]
[1770438973513,0.53696666,71146.0,71120.0,0.01407]
[1770438974410,0.53696666,71154.0,71123.0,0.53438451]
[1770438974605,0.53696666,71154.0,71132.0,0.014067]
[1770438975309,0.53696666,71154.0,71135.0,0.014067]
[1770438975511,0.53696666,71154.0,71131.0,0.014067]
[1770438975707,0.53696666,71154.0,71127.0,0.014068]
[1770438975912,0.53696666,71154.0,71113.0,0.53438451]
[1770438976416,0.53696666,71152.0,71113.0,0.53438451]
[1770438976616,0.53696666,71150.0,71121.0,0.53438451]
[1770438976818,0.53696666,71150.0,71132.0,0.014067]
[1770438977118,0.55102966,71155.0,71130.0,0.53438451]
[1770438977412,0.53696666,71152.0,71125.0,0.014069]
[1770438977820,0.53696666,71147.0,71121.0,0.014069]
[1770438978320,0.53696666,71145.0,71121.0,0.014069]
[1770438978522,0.53696666,71145.0,71124.0,0.014069]
[1770438978720,0.53696666,71145.0,71127.0,0.014068]
[1770438979018,0.55103066,71152.0,71127.0,0.014068]
[1770438979219,0.55103066,71149.0,71123.0,0.014069]
[1770438979418,0.53696666,71149.0,71123.0,0.53438451]
[1770438979821,0.53696666,71149.0,71125.0,0.014069]
[1770438980920,0.53696666,71147.0,71125.0,0.014069]
[1770438981716,0.53696666,71147.0,71128.0,0.014068]
[1770438981924,0.01406,71169.0,71131.0,0.014068]
[1770438981925,0.55102966,71154.0,71131.0,0.014068]
[1770438982518,0.55102966,71154.0,71127.0,0.54845251]
[1770438982719,0.01406,71169.0,71127.0,0.54845251]
[1770438982720,0.55103066,71152.0,71127.0,0.54845251]
[1770438983825,0.53696666,71152.0,71130.0,0.014068]
[1770438985027,0.53696666,71150.0,71126.0,0.014068]
[1770438985325,0.53696666,71150.0,71128.0,0.014068]
[1770438987128,0.53696666,71150.0,71130.0,0.014068]
[1770438987424,0.53696666,71150.0,71134.0,0.014067]
[1770438987621,0.53696666,71150.0,71132.0,0.014067]
[1770438987826,0.53696666,71150.0,71134.0,0.014067]
[1770438988627,0.53696666,71150.0,71131.0,0.014068]
[1770438988826,0.53696666,71150.0,71128.0,0.014068]
[1770438989330,0.53696666,71150.0,71132.0,0.014067]
[1770438991835,0.53696666,71150.0,71134.0,0.014067]
[1770438994026,0.53696666,71150.0,71130.0,0.014068]
[1770438995929,0.53696666,71150.0,71132.0,0.014067]
[1770438996330,0.014059,71174.0,71126.0,0.20828273]
[1770438996331,0.56354076,71148.0,71126.0,0.20828273]
[1770438996534,0.56354076,71143.0,71120.0,0.01407]
[1770438996828,0.56354076,71143.0,71123.0,0.014069]
[1770438997035,0.56354076,71143.0,71123.0,0.5474132]
[1770438997532,0.56354076,71143.0,71123.0,0.5333442]
[1770438997734,0.56354076,71143.0,71123.0,0.5474132]
[1770438998035,0.56354076,71143.0,71126.0,0.014068]
[1770438998334,0.56354076,71156.0,71127.0,0.5333442]
[1770438998534,0.56354076,71156.0,71130.0,0.16717865]
[1770438998734,0.56354076,71153.0,71129.0,0.16717865]
[1770438999433,0.56354076,71153.0,71130.0,0.16717865]
[1770438999832,0.56354076,71153.0,71130.0,0.70052285]
[1770439000031,0.56354076,71153.0,71131.0,0.16717865]
[1770439000336,0.56354076,71153.0,71132.0,0.16717865]
[1770439001937,0.56354076,71153.0,71134.0,0.16717865]
[1770439002138,0.56354076,71153.0,71136.0,0.16717865]
[1770439002740,0.56354076,71160.0,71136.0,0.70052285]
[1770439002936,0.48116104,71160.0,71141.0,0.71458885]
[1770439003235,0.48116104,71160.0,71144.0,0.16717865]
[1770439003936,0.48116104,71160.0,71147.0,0.11145632]
[1770439004844,0.48116104,71160.0,71148.0,0.11145632]
[1770439005339,0.48116104,71160.0,71147.0,0.11145632]
[1770439006243,0.56354076,71172.0,71150.0,0.11145632]
[1770439006542,0.56354076,71172.0,71152.0,0.11145632]
[1770439007932,0.56354076,71172.0,71152.0,0.11134123]
[1770439008136,0.57760076,71172.0,71149.0,0.16717865]
[1770439008346,0.070276,71197.0,71134.0,0.014067]
[1770439008347,0.56354076,71158.0,71134.0,0.014067]
[1770439011145,0.56354076,71158.0,71130.0,0.014068]
[1770439011546,0.56354076,71156.0,71130.0,0.014068]
[1770439011845,0.56354076,71156.0,71133.0,0.014067]
[1770439012240,0.56354076,71156.0,71129.0,0.014068]
[1770439012742,0.56354076,71156.0,71126.0,0.27529692]
[1770439012743,0.56354076,71156.0,71127.0,0.5333442]
[1770439013143,0.56354076,71156.0,71133.0,0.014067]
[1770439013446,0.56354076,71156.0,71136.0,0.014067]
[1770439013647,0.56354076,71156.0,71132.0,0.014067]
[1770439014148,0.56354076,71161.0,71136.0,0.5333442]
[1770439014347,0.56354076,71161.0,71141.0,0.014066]
[1770439014543,0.01406,71172.0,71144.0,0.014065]
[1770439014741,0.56354076,71171.0,71145.0,0.5333442]
[1770439014935,0.56354076,71169.0,71145.0,0.5333442]
[1770439015138,0.56354076,71167.0,71142.0,0.014065]
[1770439015350,0.56354076,71167.0,71141.0,0.5333442]
[1770439015648,0.56354076,71175.0,71152.0,0.014063]
[1770439015850,0.56354076,71175.0,71152.0,0.5474072]
[1770439016743,0.56354076,71175.0,71145.0,0.20871062]
[1770439017248,0.56354076,71175.0,71145.0,0.74205482]
[1770439017450,0.56354076,71175.0,71151.0,0.5333442]
[1770439017745,0.56354076,71175.0,71152.0,0.74205482]
[1770439017943,0.56354076,71175.0,71151.0,0.20871062]
[1770439018147,0.56354076,71175.0,71149.0,0.22277462]
[1770439018648,0.56354076,71175.0,71149.0,0.014064]
[1770439018850,0.56354076,71175.0,71152.0,0.001]
[1770439020348,0.56354076,71175.0,71151.0,0.014064]
[1770439020848,0.56354076,71175.0,71154.0,0.014063]
[1770439021445,0.56354076,71175.0,71157.0,0.014062]
[1770439022042,0.56354076,71175.0,71153.0,0.5474072]
[1770439022638,0.56354076,71175.0,71156.0,0.014063]
[1770439022844,0.56354076,71175.0,71153.0,0.5333442]
[1770439023244,0.56354076,71168.0,71144.0,0.74205482]
[1770439023450,0.56354076,71159.0,71134.0,0.014067]
[1770439023743,0.56354076,71157.0,71130.0,0.923908]
[1770439023942,0.56354076,71155.0,71130.0,0.923908]
[1770439024144,0.56354076,71148.0,71130.0,0.90984]
[1770439024751,0.56354076,71146.0,71118.0,0.90984]
[1770439024959,0.56354076,71144.0,71119.0,0.01407]
[1770439025641,0.014061,71164.0,71118.0,0.90984]
[1770439025841,0.014058,71179.0,71103.0,0.014073]
[1770439025842,0.57456694,71131.0,71103.0,0.014073]
[1770439026043,0.014067,71132.0,71094.0,0.955155]
[1770439026044,0.57456694,71154.0,71104.0,0.54005482]
[1770439026345,0.57456694,71140.0,71110.0,0.55412682]
[1770439026947,0.57456694,71136.0,71106.0,0.014073]
[1770439027250,0.57456694,71136.0,71118.0,0.001]
[1770439028145,0.57456694,71136.0,71109.0,0.54005482]
[1770439028351,0.57456694,71136.0,71105.0,0.923993]
[1770439028352,0.58863394,71136.0,71105.0,0.923993]
[1770439028648,0.57456694,71136.0,71106.0,0.58011314]
[1770439028946,0.5453654,71108.0,71094.0,0.20871062]
[1770439029149,0.5453654,71104.0,71076.0,0.014278]
[1770439029352,0.5453654,71104.0,71078.0,0.014078]
[1770439029551,0.5453654,71104.0,71076.0,0.0002]
[1770439029749,0.5453654,71102.0,71076.0,0.0002]
[1770439030054,0.5453654,71100.0,71071.0,0.014029]
[1770439030247,0.5453654,71098.0,71069.0,0.01408]
[1770439030650,0.5453654,71096.0,71069.0,0.01408]
[1770439030951,0.5453654,71094.0,71069.0,0.01408]
[1770439031149,0.5453654,71092.0,71069.0,0.01408]
[1770439031553,0.5453654,71090.0,71069.0,0.01408]
[1770439031953,0.5453654,71088.0,71061.0,0.90996]
[1770439032252,0.5453654,71086.0,71057.0,0.014082]
[1770439032448,0.5453654,71084.0,71057.0,0.014082]
[1770439032642,0.5453654,71082.0,71060.0,0.014082]
[1770439032849,0.5453654,71081.0,71060.0,0.014082]
[1770439033049,0.5453654,71079.0,71060.0,0.014082]
[1770439033346,0.5453654,71078.0,71060.0,0.014082]
[1770439033748,0.5453654,71078.0,71036.0,0.070434]
[1770439033749,0.014079,71073.0,71036.0,0.58011314]
[1770439034052,0.070375,71097.0,71041.0,0.59419814]
[1770439034053,0.5453654,71071.0,71041.0,0.59419814]
[1770439034248,0.5453654,71070.0,71041.0,0.58011314]
[1770439034454,0.5453654,71070.0,71043.0,0.58011314]
[1770439034663,0.0001398,71069.0,71048.0,0.58011314]
[1770439034850,0.5453654,71067.0,71039.0,0.014086]
[1770439035048,0.5453654,71065.0,71033.0,0.014087]
[1770439035247,0.5453654,71063.0,71030.0,0.58011314]
[1770439035445,0.014073,71102.0,71030.0,0.58011314]
[1770439035446,0.5453654,71061.0,71030.0,0.58011314]
[1770439035646,0.014079,71077.0,71030.0,0.58011314]
[1770439035647,0.5453654,71060.0,71030.0,0.58011314]
[1770439036554,0.5453654,71060.0,71036.0,0.014086]
[1770439037456,0.00015421,71059.0,71036.0,0.014086]
[1770439037757,0.5453654,71060.0,71036.0,0.014086]
[1770439039055,0.5453654,71076.0,71046.0,0.59419714]
[1770439039450,0.070367,71104.0,71046.0,0.58011314]
[1770439039451,0.5453654,71074.0,71046.0,0.58011314]
[1770439039648,0.5453654,71072.0,71046.0,0.58011314]
[1770439039853,0.5453654,71070.0,71043.0,0.014085]
[1770439040053,0.5453654,71068.0,71043.0,0.014085]
[1770439040656,0.5453654,71066.0,71043.0,0.014085]
[1770439040855,0.5453654,71066.0,71046.0,0.001]
[1770439041056,0.070374,71097.0,71046.0,0.001]
[1770439041057,0.5453654,71064.0,71046.0,0.001]
[1770439041251,0.5453654,71064.0,71046.0,0.015084]
[1770439041456,0.5453654,71072.0,71046.0,0.015084]
[1770439042450,0.5453654,71071.0,71046.0,0.015084]
[1770439042650,0.5453654,71069.0,71046.0,0.015084]
[1770439042850,0.5453654,71069.0,71046.0,0.014084]
[1770439043852,0.5453654,71067.0,71046.0,0.014084]
[1770439044058,0.014078,71079.0,71046.0,0.014084]
[1770439044059,0.5453654,71065.0,71046.0,0.014084]
[1770439044360,0.5453654,71065.0,71050.0,0.014084]
[1770439044556,0.5453654,71065.0,71046.0,0.014084]
[1770439044756,0.5453654,71065.0,71049.0,0.014084]
[1770439045148,0.014073,71104.0,71052.0,0.014083]
[1770439045450,0.5453654,71081.0,71057.0,0.014082]
[1770439045651,0.5453654,71081.0,71061.0,0.014081]
[1770439045852,0.5453654,71091.0,71069.0,0.01408]
[1770439046060,0.5453654,71091.0,71072.0,0.014079]
[1770439046253,0.5453654,71091.0,71068.0,0.01408]
[1770439046558,0.5453654,71091.0,71051.0,0.9108]
[1770439046559,0.5453654,71091.0,71052.0,0.58011314]
[1770439046755,0.5453654,71089.0,71061.0,0.014081]
[1770439046956,0.5453654,71087.0,71061.0,0.014081]
[1770439047161,0.5453654,71085.0,71061.0,0.014081]
[1770439047358,0.5453654,71085.0,71059.0,0.58011314]
[1770439047557,0.5453654,71102.0,71067.0,0.58011314]
[1770439047761,0.5453654,71100.0,71067.0,0.58011314]
[1770439047962,0.5453654,71099.0,71078.0,0.014078]
[1770439048466,0.5453654,71099.0,71074.0,0.58011314]
[1770439048467,0.5453654,71099.0,71081.0,0.014077]
[1770439049457,0.5453654,71099.0,71077.0,0.014078]
[1770439049664,0.5453654,71097.0,71077.0,0.014078]
[1770439049861,0.5453654,71095.0,71077.0,0.014078]
[1770439050258,0.5453654,71095.0,71067.0,0.01408]
[1770439050464,0.5453654,71091.0,71059.0,0.014082]
[1770439050664,0.5453654,71091.0,71057.0,0.58011314]
[1770439050665,0.5453654,71089.0,71063.0,0.014081]
[1770439050964,0.014076,71092.0,71063.0,0.014081]
[1770439050965,0.5453654,71087.0,71063.0,0.014081]
[1770439051165,0.5453654,71085.0,71059.0,0.014082]
[1770439051366,0.014076,71092.0,71059.0,0.014082]
[1770439051367,0.5453654,71083.0,71059.0,0.014082]
[1770439051563,0.5453654,71081.0,71055.0,0.014083]
[1770439051864,0.5453654,71079.0,71049.0,0.58011314]
[1770439052064,0.5453654,71077.0,71059.0,0.014082]
[1770439052255,0.5453654,71075.0,71059.0,0.014082]
[1770439052454,0.5453654,71073.0,71059.0,0.014082]
[1770439053465,0.014076,71090.0,71041.0,0.16533747]
[1770439053466,0.5453654,71069.0,71041.0,0.16533747]
[1770439053670,0.5453654,71067.0,71037.0,0.014086]
[1770439053969,0.5453654,71065.0,71045.0,0.014085]
[1770439054267,0.5453654,71065.0,71040.0,0.59419914]
[1770439054462,0.5453654,71065.0,71040.0,0.58011314]
[1770439054664,0.5453654,71063.0,71035.0,0.014087]
[1770439054867,0.5453654,71061.0,71035.0,0.014087]
[1770439055061,0.5453654,71077.0,71039.0,0.59419914]
[1770439055263,0.5453654,71072.0,71039.0,0.58011314]
[1770439055575,0.5453654,71070.0,71033.0,0.014087]
[1770439055771,0.52644389,71068.0,71033.0,0.014087]
[1770439055966,0.52644389,71066.0,71037.0,0.014086]
[1770439056167,0.52644389,71064.0,71032.0,0.58421822]
[1770439056475,0.52644389,71062.0,71032.0,0.58421822]
[1770439056673,0.52644389,71060.0,71028.0,0.16533747]
[1770439056967,0.52644389,71058.0,71025.0,0.0140948]
[1770439057180,0.014083,71055.0,71025.0,0.0140948]
[1770439057376,0.52644389,71054.0,71025.0,0.0140948]
[1770439057581,0.52644389,71052.0,71025.0,0.0140948]
[1770439057781,0.52644389,71050.0,71025.0,0.0140948]
[1770439057981,0.52644389,71048.0,71025.0,0.0140948]
[1770439058184,0.52644389,71046.0,71025.0,0.0140948]
[1770439058384,0.52644389,71044.0,71025.0,0.0140948]
[1770439058579,0.52644389,71042.0,71025.0,0.0140948]
[1770439058786,0.52644389,71040.0,71025.0,0.0140948]
[1770439059083,0.52644389,71038.0,71025.0,0.0140948]
[1770439059485,0.52644389,71048.0,71025.0,0.0140948]
[1770439059990,0.52644389,71046.0,71002.0,0.57013122]
[1770439060186,0.15290804,71070.0,71010.0,0.014092]
[1770439060187,0.54052889,71044.0,71010.0,0.014092]
[1770439060486,0.52644389,71042.0,71017.0,0.58422122]
[1770439060890,0.52644389,71057.0,71024.0,0.014089]
[1770439061080,0.52644389,71047.0,71024.0,0.014089]
[1770439061277,0.52644389,71046.0,71010.0,0.014092]
[1770439061476,0.52644389,71044.0,71010.0,0.014092]
[1770439061675,0.52644389,71042.0,71010.0,0.014092]
[1770439061881,0.52644389,71040.0,71010.0,0.014092]
[1770439062085,0.52644389,71038.0,71013.0,0.014091]
[1770439062293,0.52644389,71036.0,71009.0,0.57013122]
[1770439062480,0.52644389,71036.0,71006.0,0.014092]
[1770439062481,0.52644389,71034.0,71006.0,0.014092]
[1770439062681,0.014086,71041.0,71006.0,0.014092]
[1770439062682,0.52644389,71032.0,71006.0,0.014092]
[1770439062990,0.52644389,71032.0,71009.0,0.014092]
[1770439063190,0.52644389,71030.0,71005.0,0.014093]
[1770439063488,0.014086,71040.0,71005.0,0.014093]
[1770439063489,0.52644389,71028.0,71005.0,0.014093]
[1770439063683,0.52644389,71026.0,71005.0,0.014093]
[1770439063888,0.52644389,71026.0,70993.0,0.20651438]
[1770439063889,0.52644389,71025.0,71006.0,0.001]
[1770439064082,0.52644389,71023.0,70995.0,0.014094]
[1770439064279,0.014084,71048.0,70991.0,0.014095]
[1770439064280,0.52644389,71021.0,70991.0,0.014095]
[1770439064482,0.52644389,71019.0,70991.0,0.014095]
[1770439064786,0.52644389,71017.0,70991.0,0.014095]
[1770439065190,0.52644389,71015.0,70994.0,0.57013122]
[1770439065388,0.52644389,71031.0,71005.0,0.001]
[1770439065889,0.52644389,71029.0,71005.0,0.001]
[1770439066084,0.52644389,71027.0,71001.0,0.014093]
[1770439066291,0.52644389,71025.0,71003.0,0.014093]
[1770439066588,0.52644389,71024.0,71003.0,0.014093]
[1770439066887,0.52644389,71023.0,70999.0,0.014094]
[1770439067086,0.52644389,71022.0,70999.0,0.014094]
[1770439067488,0.52644389,71022.0,71002.0,0.014093]
[1770439067988,0.52644389,71031.0,71005.0,0.58422322]
[1770439068290,0.52644389,71031.0,71007.0,0.014092]
[1770439068695,0.52644389,71029.0,71007.0,0.014092]
[1770439068883,0.00014377,71028.0,71007.0,0.014092]
[1770439069082,0.00011502,71027.0,71007.0,0.014092]
[1770439069288,0.00010539,71026.0,71006.0,0.58422322]
[1770439069485,0.52644389,71029.0,71006.0,0.58422322]
[1770439069790,0.014086,71038.0,71011.0,0.014091]
[1770439069791,0.52644389,71038.0,71011.0,0.014091]
[1770439069980,0.52644389,71036.0,71011.0,0.014091]
[1770439070181,0.52644389,71034.0,71011.0,0.014091]
[1770439070380,0.52644389,71032.0,71011.0,0.014091]
[1770439070578,0.52644389,71032.0,71006.0,0.57013122]
[1770439070779,0.52644389,71046.0,71017.0,0.01409]
[1770439070989,0.52644389,71044.0,71017.0,0.01409]
[1770439071186,0.52644389,71042.0,71017.0,0.01409]
[1770439071386,0.52644389,71041.0,71017.0,0.01409]
[1770439071586,0.52644389,71041.0,71000.0,0.2337]
[1770439071587,0.52644389,71035.0,71000.0,0.11117233]
[1770439071793,0.52644389,71033.0,70998.0,0.57013122]
[1770439071992,0.52644389,71031.0,70998.0,0.57013122]
[1770439072191,0.52644389,71029.0,70998.0,0.57013122]
[1770439072395,0.52644389,71029.0,71009.0,0.014092]
[1770439072794,0.52644389,71029.0,71012.0,0.014091]
[1770439073194,0.52644389,71041.0,71015.0,0.58422222]
[1770439073393,0.52644389,71039.0,71015.0,0.57013122]
[1770439073696,0.52644389,71034.0,71005.0,0.57013122]
[1770439074194,0.52644389,71034.0,71009.0,0.014092]
[1770439074389,0.52644389,71030.0,71001.0,0.014093]
[1770439074594,0.52644389,71028.0,70997.0,0.014094]
[1770439074795,0.52644389,71026.0,70997.0,0.014094]
[1770439075185,0.014085,71044.0,70989.0,0.0002]
[1770439075186,0.54053289,71024.0,70993.0,0.014095]
[1770439075493,0.52644389,71022.0,70996.0,0.014094]
[1770439075695,0.52644389,71020.0,70996.0,0.014094]
[1770439075992,0.52644389,71018.0,70996.0,0.014094]
[1770439076296,0.52644389,71017.0,70996.0,0.014094]
[1770439076889,0.52644389,71017.0,70992.0,0.014095]
[1770439077495,0.52644389,71016.0,70992.0,0.014095]
[1770439077895,0.52644389,71015.0,70992.0,0.014095]
[1770439078193,0.52644389,71013.0,70989.0,0.57013122]
[1770439079192,5.598e-05,71012.0,70989.0,0.57013122]
[1770439079391,0.52644389,71013.0,70986.0,0.014096]
[1770439079590,0.52644389,71011.0,70986.0,0.014096]
[1770439079986,0.52644389,71010.0,70989.0,0.014096]
[1770439080296,0.52644389,71010.0,70992.0,0.014095]
[1770439080497,0.52644389,71009.0,70984.0,0.57013122]
[1770439080697,0.52644389,71009.0,70986.0,0.014096]
[1770439080897,0.52644389,71009.0,70984.0,0.68135687]
[1770439081092,0.52644389,71009.0,70984.0,0.57013122]
[1770439082298,0.52644389,71009.0,70986.0,0.11122565]
[1770439082891,0.52644389,71009.0,70985.0,0.014097]
[1770439083584,0.52644389,71009.0,70986.0,0.001]
[1770439083988,0.52644389,71009.0,70990.0,0.014096]
[1770439084501,0.52644389,71016.0,70992.0,0.69545187]
[1770439084694,5.598e-05,71015.0,70993.0,0.11122565]
[1770439084894,5.598e-05,71014.0,70994.0,0.11122565]
[1770439085094,0.52644389,71016.0,70994.0,0.11122565]
[1770439085393,0.52644389,71016.0,70995.0,0.11122565]
[1770439085794,0.52644389,71016.0,70995.0,0.12532065]
[1770439085996,0.52644389,71016.0,70999.0,0.014094]
[1770439086302,0.52644389,71016.0,70999.0,0.11122565]
[1770439087396,0.52644389,71016.0,71000.0,0.11122565]
[1770439087898,0.52644389,71016.0,71001.0,0.11122565]
[1770439088200,0.52497155,71016.0,71002.0,0.11122565]
[1770439088398,0.52497155,71016.0,71003.0,0.11122565]
[1770439088595,5.598e-05,71015.0,71003.0,0.11122565]
[1770439088900,0.014083,71055.0,71004.0,0.11122565]
[1770439089099,0.014087,71033.0,71016.0,0.0002]
[1770439089294,0.014088,71031.0,71008.0,0.11122565]
[1770439089489,0.014088,71031.0,71010.0,0.11122565]
[1770439089894,0.014087,71035.0,71010.0,0.11122565]
[1770439090095,0.014086,71039.0,71012.0,0.11122565]
[1770439090295,0.014086,71039.0,71013.0,0.11122565]
[1770439090702,0.014086,71039.0,71012.0,0.11122565]
[1770439091091,0.014086,71039.0,71013.0,0.014091]
[1770439091297,0.014087,71036.0,71011.0,0.11122565]
[1770439091498,0.014087,71034.0,71011.0,0.11122565]
[1770439091696,0.014087,71034.0,71010.0,0.11122565]
[1770439092003,0.014087,71032.0,71008.0,0.11122565]
[1770439093099,0.001,71034.0,71009.0,0.014092]
[1770439093296,0.001,71034.0,71012.0,0.014091]
[1770439093700,0.001,71034.0,71015.0,0.014091]
[1770439094592,0.014086,71040.0,71015.0,0.014091]
[1770439095196,0.014083,71055.0,71018.0,0.01409]
[1770439095401,0.014086,71038.0,71015.0,0.014091]
[1770439095794,0.014087,71035.0,71012.0,0.11122565]
[1770439095997,0.014087,71032.0,71011.0,0.11122565]
[1770439096199,0.014087,71032.0,71010.0,0.11122565]
[1770439096406,0.014087,71032.0,71009.0,0.11122565]
[1770439096598,0.014087,71036.0,71011.0,0.014091]
[1770439096797,0.014086,71040.0,71014.0,0.014091]
[1770439097003,0.014083,71055.0,71014.0,0.014091]
[1770439097004,0.014086,71038.0,71014.0,0.014091]
[1770439097803,0.014087,71034.0,71011.0,0.12531665]
[1770439098003,0.001,71035.0,71014.0,0.014091]
[1770439098401,5.598e-05,71034.0,71014.0,0.014091]
[1770439098601,5.598e-05,71033.0,71014.0,0.014091]
[1770439098807,5.598e-05,71032.0,71014.0,0.014091]
[1770439099107,0.014086,71037.0,71014.0,0.014091]
[1770439099309,0.014083,71055.0,71011.0,0.12531665]
[1770439099310,0.014087,71034.0,71011.0,0.12531665]
[1770439099712,0.014087,71034.0,71011.0,0.014091]
[1770439099911,0.014086,71038.0,71013.0,0.014091]
[1770439100406,0.014086,71038.0,71016.0,0.01409]
[1770439100708,0.014084,71051.0,71012.0,0.014091]
[1770439100907,0.014087,71036.0,71012.0,0.014091]
[1770439101108,0.014087,71034.0,71012.0,0.014091]
[1770439101507,0.014087,71032.0,71012.0,0.014091]
[1770439101809,0.014087,71032.0,71008.0,0.014092]
[1770439102599,0.014087,71035.0,71008.0,0.11122565]
[1770439103415,0.014087,71035.0,71009.0,0.11122565]
[1770439103908,0.014086,71038.0,71014.0,0.014091]
[1770439104413,0.014087,71036.0,71011.0,0.12603127]
[1770439104907,0.014087,71033.0,71011.0,0.11194027]
[1770439105106,0.014087,71033.0,71007.0,0.11194027]
[1770439105407,0.014087,71033.0,71010.0,0.014091]
[1770439105611,0.014086,71037.0,71012.0,0.014091]
[1770439105906,0.014087,71035.0,71014.0,0.014091]
[1770439106707,0.001,71036.0,71014.0,0.014091]
[1770439107111,0.014084,71051.0,71014.0,0.014091]
[1770439107416,0.001,71033.0,71014.0,0.014091]
[1770439107712,0.014087,71032.0,71010.0,0.11194027]
[1770439107913,0.014088,71030.0,71008.0,0.014092]
[1770439109611,0.014088,71030.0,71007.0,0.11194027]
[1770439109804,0.014088,71028.0,71007.0,0.11194027]
[1770439110011,0.014087,71032.0,71007.0,0.014092]
[1770439110704,0.014087,71032.0,71007.0,0.12603227]
[1770439110903,0.014088,71029.0,71007.0,0.12603227]
[1770439111213,0.014087,71034.0,71007.0,0.12603227]
[1770439111414,0.001,71032.0,71009.0,0.014092]
[1770439112314,0.014088,71031.0,71009.0,0.014092]
[1770439112618,0.014088,71031.0,71008.0,0.12603227]
[1770439113313,5.598e-05,71030.0,71009.0,0.11194027]
[1770439113506,0.014088,71031.0,71009.0,0.11194027]
[1770439113815,0.014088,71031.0,71001.0,0.20651438]
[1770439113816,0.014087,71034.0,71010.0,0.12603227]
[1770439114208,0.014087,71032.0,71010.0,0.12603227]
[1770439114416,0.014087,71035.0,71011.0,0.11194027]
[1770439114724,0.014087,71035.0,71012.0,0.014091]
[1770439115418,0.014087,71035.0,71012.0,0.12603127]
[1770439115924,0.014087,71034.0,71014.0,0.11194027]
[1770439116310,0.014087,71034.0,71015.0,0.11194027]
[1770439116516,0.014086,71037.0,71015.0,0.11194027]
[1770439116715,0.014086,71037.0,71016.0,0.01409]
[1770439117312,0.014086,71037.0,71016.0,0.12603027]
[1770439117817,0.015086,71037.0,71016.0,0.12603027]
[1770439118016,5.598e-05,71036.0,71016.0,0.12603027]
[1770439118319,0.015086,71037.0,71016.0,0.12603027]
[1770439118516,0.001,71037.0,71016.0,0.11194027]
[1770439118716,0.001,71037.0,71020.0,0.11194027]
[1770439118919,0.001,71037.0,71021.0,0.11194027]
[1770439119118,0.001,71037.0,71022.0,0.014089]
[1770439120223,0.014081,71062.0,71026.0,0.014088]
[1770439120428,0.014082,71059.0,71023.0,0.11194027]
[1770439120719,0.014086,71039.0,71018.0,0.01409]
[1770439121110,0.014086,71037.0,71014.0,0.014091]
[1770439121818,0.014086,71037.0,71014.0,0.12603127]
[1770439122924,0.014086,71037.0,71015.0,0.54834243]
[1770439123428,0.54673796,71034.0,71015.0,0.54834243]
[1770439123733,0.014088,71028.0,71015.0,0.54834243]
[1770439125117,0.54673796,71032.0,71015.0,0.54834243]
[1770439125328,0.014084,71050.0,71028.0,0.54834243]
[1770439125521,0.54673796,71063.0,71038.0,0.54834243]
[1770439125522,0.014081,71063.0,71038.0,0.54834243]
[1770439125833,0.54673796,71071.0,71046.0,0.54834243]
[1770439126023,0.54673796,71069.0,71046.0,0.54834243]
[1770439126226,0.56081896,71065.0,71046.0,0.54834243]
[1770439126627,5.598e-05,71064.0,71046.0,0.54834243]
[1770439126929,0.56081896,71065.0,71046.0,0.54834243]
[1770439127132,0.014081,71065.0,71046.0,0.54834243]
[1770439127324,0.01408,71070.0,71046.0,0.54834243]
[1770439127532,0.54673796,71067.0,71046.0,0.54834243]
[1770439127724,0.01408,71069.0,71046.0,0.54834243]
[1770439128328,0.01408,71067.0,71046.0,0.54834243]
[1770439128523,0.014081,71065.0,71046.0,0.54834243]
[1770439128730,0.56081896,71065.0,71046.0,0.54834243]
[1770439129030,0.001,71067.0,71046.0,0.54834243]
[1770439129227,0.014081,71066.0,71046.0,0.54834243]
[1770439130128,0.014081,71064.0,71046.0,0.54834243]
[1770439130633,0.54673796,71067.0,71046.0,0.54834243]
[1770439130934,0.56081896,71063.0,71046.0,0.54834243]
[1770439131437,0.54673796,71063.0,71046.0,4.3e-07]
[1770439131736,0.014083,71054.0,71035.0,0.54834243]
[1770439131927,0.014084,71048.0,71035.0,0.54854243]
[1770439132128,0.014086,71041.0,71028.0,0.54834243]
[1770439132327,0.014085,71046.0,71028.0,0.54834243]
[1770439132529,0.014081,71065.0,71028.0,0.54834243]
[1770439132530,0.014086,71039.0,71028.0,0.54834243]
[1770439132728,0.01408,71071.0,71028.0,0.54834243]
[1770439133033,0.014085,71042.0,71028.0,0.54834243]
[1770439136437,0.014085,71046.0,71028.0,0.54834243]
[1770439137736,0.01408,71068.0,71016.0,0.54834243]
[1770439137737,0.014087,71036.0,71016.0,0.54834243]
[1770439138732,0.014087,71036.0,70995.0,0.0002]
[1770439138733,0.014087,71036.0,71018.0,0.54834243]
[1770439140842,0.014085,71042.0,71023.0,0.54834243]
[1770439141241,0.014085,71046.0,71025.0,0.54834243]
[1770439141448,0.014085,71046.0,71027.0,0.54834243]
[1770439142348,0.54673796,71050.0,71027.0,0.54834243]
[1770439142645,0.001,71042.0,71027.0,0.54834243]
[1770439143050,0.001,71042.0,71011.0,0.20651438]
[1770439143051,0.014092,71009.0,71005.0,9.9e-07]
[1770439143345,0.54673796,71023.0,70998.0,0.54834243]
[1770439143555,0.014092,71008.0,70998.0,0.54834243]
[1770439144359,0.54673796,71023.0,70998.0,0.54834243]
[1770439144850,0.014091,71013.0,70998.0,0.54834243]
[1770439148454,0.014088,71030.0,70998.0,0.54834243]
[1770439148660,0.57417577,71029.0,70998.0,0.54834243]
[1770439148850,0.014091,71012.0,70998.0,0.54834243]
[1770439149862,0.014092,71010.0,70998.0,0.54834243]
[1770439150062,0.014092,71007.0,70998.0,0.23481763]
[1770439150456,0.58826477,71021.0,70998.0,0.23481763]
[1770439150457,0.014092,71011.0,70998.0,0.23481763]
[1770439150761,0.01409,71017.0,70998.0,0.23481763]
[1770439151252,0.014087,71034.0,70998.0,0.23481763]
[1770439151452,0.014089,71022.0,71002.0,0.38145159]